[Event "Baden Youth-ch 2020"]
[Site "Karlsruhe-Durlach"]
[Date "2020.01.06"]
[Round "7.4"]
[White "Wehrle, Maximilian"]
[Black "Dobrikov, Marco"]
[Result "0-1"]
[ECO "D85"]
[WhiteElo "1735"]
[BlackElo "2291"]
[Annotator "NA"]
[PlyCount "48"]
[EventDate "2020.01.02"]
[EventType "swiss"]
[EventCountry "GER"]
[SourceTitle "playchess.com"]
[Source "ChessBase"]
[SourceQuality "1"]
[TimeControl "5400+30"]

1. d4 {[%emt 0:00:00]} Nf6 {[%emt 0:00:00]} 2. c4 {[%emt 0:00:00]} g6 {[%emt 0:00:00]} 3. Nc3 {[%emt 0:00:48]} d5 {[%emt 0:00:00]} 4. cxd5 {[%emt 0:01:28]} Nxd5 {[%emt 0:00:00]} 5. e4 {[%emt 0:01:17]} Nxc3 {[%emt 0:00:00]} 6. bxc3 {[%emt 0:00:09]} Bg7 {[%emt 0:00:00]} 7. Qb3 {[%emt 0:04:05]} c5 {[%emt 0:01:47] D85: Exchange Grünfeld: Unusual White 7th moves and lines with 7 Nf3} (7... O-O 8. Be3 c5 9. d5 Qa5 10. Rc1 Nd7 11. Nf3 Nf6 12. Nd2 Bd7 13. Be2 Qc7 14. h3 b5 15. O-O {1-0 (39) Kocyigit,B (1873)-Tumova,A (1722) Bratislava 2019}) 8. Bb5+ {[%emt 0:07:08]} Bd7 {[%emt 0:00:32]} 9. Ne2 {[%emt 0:04:14]} O-O {[%emt 0:00:31]} 10. O-O $146 {[%emt 0:03:00]} ({Predecessor:} 10. Rb1 a6 11. Bxd7 Nxd7 12. O-O e5 13. Ba3 exd4 14. cxd4 Re8 15. dxc5 Rxe4 16. Qxb7 Nxc5 17. Bxc5 Rxe2 {½-½ (24) Garcia,J-Gomez Deltell,N Ateneo 1992}) 10... cxd4 {[%emt 0:03:01]} 11. cxd4 {[%emt 0:02:06]} Nc6 {[%emt 0:00:25]} 12. Be3 {[%emt 0:02:37]} a6 {[%emt 0:04:51]} 13. Bxc6 {[%emt 0:01:10]} Bxc6 {[%emt 0:00:04]} 14. f3 {[%emt 0:07:00]} Bb5 {[%emt 0:00:28]} 15. Rfe1 {[%emt 0:01:11]} Bxe2 {[%emt 0:05:14]} 16. Rxe2 {[%emt 0:00:10]} Bxd4 {[%emt 0:00:07]} 17. Rd1 {[%emt 0:00:58]} Bxe3+ {[%emt 0:00:04]} 18. Rxe3 {[%emt 0:00:08]} Qc7 {[%emt 0:00:19]} 19. Rc3 {[%emt 0:01:00]} Qa5 {[%emt 0:00:04]} 20. Rd7 {[%emt 0:01:16]} Rac8 {[%emt 0:00:09]} 21. Re3 {[%emt 0:05:32]} Rc1+ {[%emt 0:04:31]} 22. Kf2 {[%emt 0:00:16]} Rfc8 {[%emt 0:00:40]} 23. Rxb7 $2 {[%emt 0:05:23]} (23. Re2 $19) 23... R8c2+ {[%emt 0:00:41] Double Attack} 24. Re2 {[%emt 0:00:18]} Qe1+ {[%emt 0:00:14] Double Attack} 0-1

[Event "Baden Youth-ch 2020"]
[Site "Karlsruhe-Durlach"]
[Date "2020.01.06"]
[Round "7.5"]
[White "Koll, Linus"]
[Black "Wu, Luka"]
[Result "0-1"]
[ECO "B72"]
[WhiteElo "1987"]
[BlackElo "2057"]
[Annotator "NA"]
[PlyCount "104"]
[EventDate "2020.01.02"]
[EventType "swiss"]
[EventCountry "GER"]
[SourceTitle "playchess.com"]
[Source "ChessBase"]
[SourceQuality "1"]
[TimeControl "5400+30"]

1. e4 {[%emt 0:00:00]} c5 {[%emt 0:00:00]} 2. Nf3 {[%emt 0:00:00]} d6 {[%emt 0:00:00]} 3. d4 {[%emt 0:00:00]} cxd4 {[%emt 0:00:00]} 4. Nxd4 {[%emt 0:00:00]} Nf6 {[%emt 0:00:00]} 5. Nc3 {[%emt 0:00:00]} g6 {[%emt 0:00:00]} 6. h3 {[%emt 0:00:00]} Bg7 {[%emt 0:00:24]} 7. g4 {[%emt 0:00:00]} Nc6 {[%emt 0:07:10]} 8. Be3 {[%emt 0:03:03]} O-O {[%emt 0:14:48]} 9. Bg2 {[%emt 0:16:43]} Bd7 {[%emt 0:02:47]} 10. g5 {[%emt 0:19:14]} Nh5 {[%emt 0:05:31]} 11. Nxc6 {[%emt 0:30:01]} (11. Bf3 $15) 11... bxc6 {[%emt 0:00:17]} 12. Bf3 $17 {[%emt 0:00:47]} ({Better is} 12. Qd2) 12... Qa5 {[%emt 0:05:56]} 13. Bd2 {[%emt 0:16:19]} Rab8 {[%emt 0:00:41]} 14. Bxh5 {[%emt 0:03:15]} gxh5 {[%emt 0:00:31]} 15. Rb1 {[%emt 0:04:53]} Rfe8 {[%emt 0:00:53]} 16. a3 {[%emt 0:02:32]} Be6 {[%emt 0:00:56]} 17. O-O {[%emt 0:00:45]} Bxh3 {[%emt 0:06:14]} 18. Re1 {[%emt 0:00:07]} Bxc3 {[%emt 0:10:11]} 19. bxc3 {[%emt 0:01:51]} Rxb1 {[%emt 0:00:16]} 20. Qxb1 {[%emt 0:00:00]} Qxa3 {[%emt 0:00:04]} 21. Kh2 {[%emt 0:00:00]} Bg4 {[%emt 0:00:24]} 22. Kg3 {[%emt 0:00:00]} Qc5 {[%emt 0:00:51]} 23. f3 {[%emt 0:00:19]} Qe5+ {[%emt 0:01:14]} 24. Kg2 {[%emt 0:00:39]} h4 {[%emt 0:01:29]} 25. f4 {[%emt 0:01:11]} Qc5 {[%emt 0:02:00]} 26. Rh1 {[%emt 0:00:32]} Qc4 {[%emt 0:00:57]} 27. Qe1 {[%emt 0:00:16]} Be2 {[%emt 0:01:30]} 28. Rxh4 {[%emt 0:00:52]} Qxe4+ {[%emt 0:00:25]} 29. Kh2 {[%emt 0:00:13]} Bf3 {[%emt 0:02:54]} 30. Kg3 {[%emt 0:00:13]} Qxe1+ {[%emt 0:00:58]} 31. Bxe1 {[%emt 0:00:04]} Be4 {[%emt 0:00:03]} 32. Bf2 {[%emt 0:00:31]} a5 {[%emt 0:00:07]} 33. f5 {[%emt 0:01:08]} Bxc2 {[%emt 0:02:52]} 34. g6 {[%emt 0:00:35]} hxg6 {[%emt 0:00:24]} 35. Bd4 {[%emt 0:00:36]} f6 {[%emt 0:00:08]} 36. fxg6 {[%emt 0:00:42]} Bxg6 {[%emt 0:00:13]} 37. Bb6 {[%emt 0:00:04]} Ra8 {[%emt 0:00:13]} 38. Ra4 {[%emt 0:00:25]} Bc2 {[%emt 0:00:05]} 39. Rxa5 {[%emt 0:00:29]} Rxa5 {[%emt 0:00:05]} 40. Bxa5 {[%emt 0:00:04]} Kf7 {[%emt 0:00:07]} 41. Bb4 {[%emt 0:00:29]} c5 {[%emt 0:00:17]} 42. Ba3 {[%emt 0:00:08]} e5 {[%emt 0:00:03]} 43. Bc1 {[%emt 0:00:15]} Ke6 {[%emt 0:00:04]} 44. Kf3 {[%emt 0:00:10]} f5 {[%emt 0:00:06]} 45. Ke3 {[%emt 0:00:44]} f4+ {[%emt 0:00:22]} 46. Kd2 {[%emt 0:00:21]} Be4 {[%emt 0:00:09]} 47. Ke2 {[%emt 0:00:59]} Bd5 {[%emt 0:00:06]} 48. Bd2 {[%emt 0:00:20]} Kf5 {[%emt 0:00:05]} 49. Be1 {[%emt 0:00:29]} e4 {[%emt 0:00:13]} 50. Bh4 {[%emt 0:00:13]} e3 {[%emt 0:00:35]} 51. Be7 {[%emt 0:00:19]} Ke4 {[%emt 0:00:07]} 52. Bxd6 {[%emt 0:00:09]} f3+ {[%emt 0:00:05]} 0-1

[Event "Baden Youth-ch 2020"]
[Site "Karlsruhe-Durlach"]
[Date "2020.01.06"]
[Round "7.6"]
[White "Chung, Dana"]
[Black "Schneider, Katharina"]
[Result "0-1"]
[ECO "D32"]
[WhiteElo "1252"]
[BlackElo "1672"]
[Annotator "NA"]
[PlyCount "50"]
[EventDate "2020.01.02"]
[EventType "swiss"]
[EventCountry "GER"]
[SourceTitle "playchess.com"]
[Source "ChessBase"]
[SourceQuality "1"]
[TimeControl "5400+30"]

1. d4 {[%emt 0:00:00]} d5 {[%emt 0:00:00]} 2. c4 {[%emt 0:00:00]} e6 {[%emt 0:00:00]} 3. Nc3 {[%emt 0:00:00]} c5 {[%emt 0:00:15]} 4. Nf3 {[%emt 0:01:19]} cxd4 {[%emt 0:04:28]} 5. Nxd4 {[%emt 0:00:19]} e5 {[%emt 0:00:28]} 6. Qa4+ {[%emt 0:05:33]} Bd7 {[%emt 0:12:36]} 7. Ndb5 {[%emt 0:02:04]} d4 {[%emt 0:19:17]} 8. Nd5 {[%emt 0:07:29]} Na6 {[%emt 0:05:25]} 9. Qxa6 {[%emt 0:11:45]} Bb4+ {[%emt 0:00:11]} 10. Nxb4 {[%emt 0:08:28]} bxa6 {[%emt 0:00:18]} 11. Nxa6 {[%emt 0:02:15]} Bxb5 {[%emt 0:00:42]} 12. cxb5 {[%emt 0:00:22]} Rc8 {[%emt 0:05:43]} 13. e3 {[%emt 0:02:24]} d3 {[%emt 0:06:01]} 14. g3 {[%emt 0:01:44]} Rxc1+ {[%emt 0:02:53]} 15. Rxc1 {[%emt 0:00:16]} d2+ {[%emt 0:00:04]} 16. Kd1 {[%emt 0:00:07]} dxc1=Q+ {[%emt 0:00:12]} 17. Kxc1 {[%emt 0:00:15]} Nf6 {[%emt 0:02:41]} 18. Bg2 {[%emt 0:00:24]} O-O {[%emt 0:04:03]} 19. Rd1 {[%emt 0:00:22]} Qa5 {[%emt 0:01:05]} 20. Kb1 {[%emt 0:01:25]} Qxb5 {[%emt 0:01:04]} 21. Nc7 {[%emt 0:00:34]} Qe2 {[%emt 0:02:14]} 22. Rf1 {[%emt 0:00:27]} Qd3+ {[%emt 0:00:16]} 23. Ka1 {[%emt 0:00:22]} Qc4 {[%emt 0:00:12]} 24. Nd5 {[%emt 0:00:38]} Nxd5 {[%emt 0:00:09]} 25. Bxd5 {[%emt 0:00:06]} Qxf1# {[%emt 0:00:05]} 0-1

[Event "Baden Youth-ch 2020"]
[Site "Karlsruhe-Durlach"]
[Date "2020.01.06"]
[Round "7.7"]
[White "Preuss, Julian"]
[Black "Schmider, Niklas"]
[Result "0-1"]
[ECO "D85"]
[WhiteElo "1624"]
[BlackElo "2298"]
[Annotator "ChessBase"]
[PlyCount "72"]
[EventDate "2020.01.02"]
[EventType "swiss"]
[EventCountry "GER"]
[SourceTitle "playchess.com"]
[Source "ChessBase"]
[SourceQuality "1"]
[TimeControl "5400+30"]

1. d4 {[%emt 0:00:00]} Nf6 {[%emt 0:00:00]} 2. c4 {[%emt 0:00:00]} g6 {[%emt 0:00:00]} 3. Nc3 {[%emt 0:00:00]} d5 {[%emt 0:00:00]} 4. cxd5 {[%emt 0:00:28]} Nxd5 {[%emt 0:00:00]} 5. e4 {[%emt 0:01:08]} Nxc3 {[%emt 0:00:00]} 6. bxc3 {[%emt 0:00:04]} Bg7 {[%emt 0:00:06]} 7. Nf3 {[%emt 0:01:40]} c5 {[%emt 0:00:09]} 8. Be3 {[%emt 0:02:23]} O-O {[%emt 0:01:08]} 9. Be2 {[%emt 0:05:09]} Qa5 {[%emt 0:00:09]} 10. Qd2 {[%emt 0:09:17]} Rd8 {[%emt 0:01:14]} 11. Rd1 {[%emt 0:05:37]} Bg4 {[%emt 0:05:45]} 12. O-O {[%emt 0:09:07]} Nc6 {[%emt 0:02:19]} 13. h3 {[%emt 0:06:02]} Bxf3 {[%emt 0:01:37]} 14. Bxf3 {[%emt 0:00:36]} cxd4 {[%emt 0:01:18]} 15. cxd4 {[%emt 0:00:07]} Qxd2 {[%emt 0:01:01]} 16. Rxd2 {[%emt 0:00:17]} Bxd4 {[%emt 0:01:05]} 17. Bxd4 {[%emt 0:03:47]} Nxd4 {[%emt 0:06:04]} 18. Rb2 {[%emt 0:01:31]} b6 {[%emt 0:00:47]} 19. Rc1 {[%emt 0:01:37]} Rac8 {[%emt 0:01:20]} 20. Rxc8 {[%emt 0:00:49]} Rxc8 {[%emt 0:00:07]} 21. Rd2 {[%emt 0:04:08]} e5 {[%emt 0:01:31]} 22. Bd1 {[%emt 0:04:32]} Rc1 {[%emt 0:02:40]} 23. Kh2 {[%emt 0:04:57]} Rc3 {[%emt 0:03:21]} 24. f3 {[%emt 0:08:51]} b5 {[%emt 0:02:08]} 25. Kg1 {[%emt 0:04:02]} a5 {[%emt 0:01:34]} 26. Kf2 {[%emt 0:01:38]} f6 {[%emt 0:01:26]} 27. f4 {[%emt 0:03:21]} Kf7 {[%emt 0:00:56]} 28. fxe5 {[%emt 0:01:55]} fxe5 {[%emt 0:00:07]} 29. Rb2 {[%emt 0:01:48]} a4 {[%emt 0:04:18]} 30. Be2 {[%emt 0:05:21]} a3 {[%emt 0:00:53]} 31. Rd2 {[%emt 0:00:45]} Ke6 {[%emt 0:04:09]} 32. Bd3 {[%emt 0:03:14]} b4 {[%emt 0:00:46]} 33. Ke1 {[%emt 0:02:44]} b3 {[%emt 0:01:59]} 34. axb3 {[%emt 0:01:11]} Rxd3 {[%emt 0:01:13]} 35. Rxd3 {[%emt 0:00:10]} a2 {[%emt 0:00:05]} 36. Rd1 {[%emt 0:00:20]} Nxb3 {[%emt 0:00:06]} 0-1

[Event "Baden Youth-ch 2020"]
[Site "Karlsruhe-Durlach"]
[Date "2020.01.06"]
[Round "7.8"]
[White "Doll, Alexander"]
[Black "Engemann, Till"]
[Result "1-0"]
[ECO "B22"]
[WhiteElo "2127"]
[BlackElo "1980"]
[Annotator "NA"]
[PlyCount "99"]
[EventDate "2020.01.02"]
[EventType "swiss"]
[EventCountry "GER"]
[SourceTitle "playchess.com"]
[Source "ChessBase"]
[SourceQuality "1"]
[TimeControl "5400+30"]

1. e4 {[%emt 0:01:25]} c5 {[%emt 0:00:00]} 2. c3 {[%emt 0:02:45]} Nf6 {[%emt 0:00:00]} 3. e5 {[%emt 0:00:07]} Nd5 {[%emt 0:00:39]} 4. Bc4 {[%emt 0:01:33]} Nb6 {[%emt 0:00:24]} 5. Bb3 {[%emt 0:00:05]} d5 {[%emt 0:00:16]} 6. exd6 {[%emt 0:00:16] B22: Sicilian: 2 c3} Qxd6 {[%emt 0:00:19]} 7. Nf3 {[%emt 0:00:05]} c4 {[%emt 0:00:09]} 8. Bc2 {[%emt 0:00:03]} Qe6+ {[%emt 0:00:07]} 9. Qe2 {[%emt 0:00:01]} Qxe2+ {[%emt 0:00:14]} 10. Kxe2 {[%emt 0:00:00]} Nc6 {[%emt 0:00:13]} 11. d3 $146 {[%emt 0:04:07]} ({Predecessor:} 11. Re1 Bg4 12. Kf1 Bxf3 13. gxf3 {0-1 (58) Potapov,P (2479)-Andreikin,D (2705) Sochi 2017}) 11... Bf5 {[%emt 0:05:31]} 12. Na3 {[%emt 0:00:48]} cxd3+ {[%emt 0:01:27]} 13. Bxd3 {[%emt 0:00:06]} Bxd3+ {[%emt 0:00:16]} 14. Kxd3 {[%emt 0:00:04]} O-O-O+ {[%emt 0:02:50]} 15. Ke2 {[%emt 0:05:20]} e5 {[%emt 0:01:55]} 16. Nc2 {[%emt 0:01:21]} Nd5 {[%emt 0:24:30]} 17. Rd1 {[%emt 0:10:47]} Be7 {[%emt 0:09:40]} 18. g3 {[%emt 0:05:47]} Rd7 {[%emt 0:06:57]} 19. Ne3 {[%emt 0:05:13]} Rhd8 $11 {[%emt 0:02:48]} 20. Nxd5 {[%emt 0:04:29]} Rxd5 {[%emt 0:00:12]} 21. Be3 {[%emt 0:00:38]} Rxd1 {[%emt 0:03:01]} 22. Rxd1 {[%emt 0:00:24]} Rxd1 {[%emt 0:00:29]} 23. Kxd1 {[%emt 0:00:04]} Kd7 {[%emt 0:07:02]} 24. b4 {[%emt 0:04:55]} a6 {[%emt 0:06:24]} 25. Kc2 {[%emt 0:02:15]} Ke6 {[%emt 0:04:03]} 26. Kb3 {[%emt 0:03:39]} b5 {[%emt 0:02:25]} 27. a4 Kd5 {[%emt 0:02:49]} 28. Nd2 {[%emt 0:05:47]} f5 {[%emt 0:01:55]} 29. axb5 {[%emt 0:01:36]} axb5 {[%emt 0:00:19]} 30. Nb1 {[%emt 0:00:17]} g5 {[%emt 0:04:50]} 31. Na3 {[%emt 0:02:59]} f4 {[%emt 0:00:56]} 32. Bb6 {[%emt 0:00:47]} Bd8 {[%emt 0:03:58]} 33. Bxd8 {[%emt 0:08:44]} Nxd8 {[%emt 0:00:08]} 34. Nxb5 {[%emt 0:00:33]} Ke4 {[%emt 0:00:08]} 35. Nd6+ {[%emt 0:02:30]} Kf3 {[%emt 0:00:24]} 36. Kc2 {[%emt 0:06:58]} Kxf2 {[%emt 0:01:00]} 37. Kd3 {[%emt 0:00:50]} Kg2 {[%emt 0:00:41]} 38. Ne4 {[%emt 0:00:37]} f3 {[%emt 0:00:59]} 39. Ke3 {[%emt 0:00:51]} Nb7 {[%emt 0:00:26]} 40. Nd2 {[%emt 0:07:48]} Nd6 {[%emt 0:01:54]} 41. Nxf3 {[%emt 0:01:42]} h5 {[%emt 0:00:52]} 42. Nxe5 {[%emt 0:03:15]} Kxh2 {[%emt 0:00:21]} 43. Kf3 {[%emt 0:00:57]} h4 {[%emt 0:03:51]} 44. gxh4 {[%emt 0:01:38]} gxh4 {[%emt 0:00:07]} 45. c4 {[%emt 0:00:42]} h3 {[%emt 0:00:28]} 46. c5 {[%emt 0:00:44]} Kg1 {[%emt 0:00:49]} 47. Kg3 {[%emt 0:00:16]} h2 {[%emt 0:01:02]} 48. Nf3+ {[%emt 0:00:07]} Kh1 {[%emt 0:00:03]} 49. Nxh2 {[%emt 0:00:18]} Ne4+ {[%emt 0:01:22]} 50. Kf3 {[%emt 0:02:01]} 1-0

[Event "Baden Youth-ch 2020"]
[Site "Karlsruhe-Durlach"]
[Date "2020.01.06"]
[Round "7.9"]
[White "Grining, Maria"]
[Black "Wagner, Lena"]
[Result "1-0"]
[ECO "D13"]
[WhiteElo "1744"]
[BlackElo "1289"]
[Annotator "NA"]
[PlyCount "109"]
[EventDate "2020.01.02"]
[EventType "swiss"]
[EventCountry "GER"]
[SourceTitle "playchess.com"]
[Source "ChessBase"]
[SourceQuality "1"]
[TimeControl "5400+30"]

1. d4 {[%emt 0:00:00]} c6 {[%emt 0:00:04]} 2. Nf3 {[%emt 0:00:02]} d5 {[%emt 0:00:24]} 3. e3 {[%emt 0:00:13]} Nf6 {[%emt 0:00:20]} 4. c4 {[%emt 0:00:06]} Bf5 {[%emt 0:01:13]} 5. cxd5 {[%emt 0:08:25]} cxd5 {[%emt 0:00:27]} 6. Nc3 {[%emt 0:00:58]} Nc6 {[%emt 0:01:21]} 7. a3 {[%emt 0:05:57]} g6 {[%emt 0:02:45]} 8. Bd3 {[%emt 0:09:59]} Ne4 {[%emt 0:04:33]} 9. O-O {[%emt 0:11:00]} Bg7 {[%emt 0:05:43]} 10. Bxe4 {[%emt 0:04:42]} Bxe4 {[%emt 0:01:06]} 11. Nd2 {[%emt 0:01:05]} Bf5 {[%emt 0:04:43]} 12. Qb3 {[%emt 0:02:44]} O-O {[%emt 0:06:16]} 13. Qxd5 {[%emt 0:04:37]} Qxd5 {[%emt 0:01:44]} 14. Nxd5 {[%emt 0:00:09]} e5 {[%emt 0:03:32]} 15. dxe5 {[%emt 0:02:25]} Bxe5 {[%emt 0:02:17]} 16. e4 {[%emt 0:05:10]} Be6 {[%emt 0:05:53]} 17. Nf3 {[%emt 0:04:11]} Bg7 {[%emt 0:02:18]} 18. Nc7 {[%emt 0:03:55]} Rad8 {[%emt 0:02:19]} 19. Nxe6 {[%emt 0:00:25]} fxe6 {[%emt 0:00:23]} 20. Bg5 {[%emt 0:01:43]} Rc8 {[%emt 0:02:51]} 21. Rab1 {[%emt 0:01:49]} h6 {[%emt 0:04:41]} 22. Be3 {[%emt 0:00:51]} Na5 {[%emt 0:03:48]} 23. Bxa7 {[%emt 0:02:19]} Nc4 {[%emt 0:02:07]} 24. Rfd1 {[%emt 0:04:53]} Bxb2 {[%emt 0:03:10]} 25. h3 {[%emt 0:02:14]} Rf7 {[%emt 0:07:37]} 26. Nd2 {[%emt 0:05:30]} Bxa3 {[%emt 0:02:36]} 27. Nxc4 {[%emt 0:00:19]} Rxc4 {[%emt 0:00:23]} 28. Rd8+ {[%emt 0:00:36]} Bf8 {[%emt 0:01:12]} 29. Be3 {[%emt 0:02:57]} g5 {[%emt 0:02:17]} 30. f3 {[%emt 0:00:50]} Kh7 {[%emt 0:02:21]} 31. Re8 {[%emt 0:02:01]} Rc6 {[%emt 0:05:18]} 32. Rb8 {[%emt 0:00:06]} Rcc7 {[%emt 0:02:32]} 33. Rb6 {[%emt 0:14:19]} e5 {[%emt 0:00:53]} 34. Re8 {[%emt 0:00:00]} Bc5 {[%emt 0:00:54]} 35. Bxc5 {[%emt 0:00:00]} Rxc5 {[%emt 0:00:06]} 36. Rb8 {[%emt 0:00:00]} Rcc7 {[%emt 0:01:39]} 37. Re8 {[%emt 0:00:00]} Rfe7 {[%emt 0:00:41]} 38. Rxe7+ {[%emt 0:00:00]} Rxe7 {[%emt 0:00:05]} 39. Kf2 {[%emt 0:00:00]} Kg7 {[%emt 0:01:49]} 40. Kg3 {[%emt 0:00:00]} Rf7 {[%emt 0:02:37]} 41. h4 {[%emt 0:00:00]} gxh4+ {[%emt 0:03:02]} 42. Kxh4 {[%emt 0:00:00]} Rf6 {[%emt 0:00:36]} 43. Rxb7+ {[%emt 0:00:00]} Kg6 {[%emt 0:00:09]} 44. Re7 {[%emt 0:00:00]} Rf4+ {[%emt 0:01:44]} 45. Kg3 {[%emt 0:00:00]} Kf6 {[%emt 0:00:31]} 46. Re8 {[%emt 0:00:00]} h5 {[%emt 0:01:39]} 47. Kh3 {[%emt 0:00:00]} h4 {[%emt 0:01:42]} 48. Rh8 {[%emt 0:00:03]} Kg5 {[%emt 0:00:21]} 49. Rg8+ {[%emt 0:00:20]} Kh5 {[%emt 0:02:31]} 50. Re8 {[%emt 0:00:19]} Kg5 {[%emt 0:01:39]} 51. Rxe5+ {[%emt 0:00:11]} Kg6 {[%emt 0:00:25]} 52. Re8 {[%emt 0:00:44]} Kg5 {[%emt 0:01:07]} 53. Rg8+ {[%emt 0:00:27]} Kh6 {[%emt 0:00:51]} 54. Rg4 {[%emt 0:00:19]} Rxg4 {[%emt 0:00:29]} 55. Kxg4 {[%emt 0:00:08]} 1-0

[Event "Baden Youth-ch 2020"]
[Site "Karlsruhe-Durlach"]
[Date "2020.01.06"]
[Round "7.10"]
[White "Schneider, Xenia"]
[Black "Ehmann, Johanna"]
[Result "0-1"]
[ECO "B12"]
[WhiteElo "1332"]
[BlackElo "1846"]
[Annotator "NA"]
[PlyCount "118"]
[EventDate "2020.01.02"]
[EventType "swiss"]
[EventCountry "GER"]
[SourceTitle "playchess.com"]
[Source "ChessBase"]
[SourceQuality "1"]
[TimeControl "5400+30"]

1. e4 {[%emt 0:00:00]} c6 {[%emt 0:00:00]} 2. d4 {[%emt 0:00:00]} d6 {[%emt 0:00:00]} 3. Nf3 {[%emt 0:02:59]} Bg4 {[%emt 0:00:36]} 4. Bc4 {[%emt 0:11:55]} e6 {[%emt 0:06:19]} 5. c3 {[%emt 0:15:26]} Nf6 {[%emt 0:04:32]} 6. Bg5 {[%emt 0:05:48]} Be7 {[%emt 0:02:21]} 7. Nbd2 {[%emt 0:00:31]} d5 {[%emt 0:02:04]} 8. Bxf6 {[%emt 0:13:07]} Bxf6 {[%emt 0:01:23]} 9. Bd3 {[%emt 0:00:08]} Nd7 {[%emt 0:06:07]} 10. e5 {[%emt 0:02:18]} Be7 {[%emt 0:03:23]} 11. Qc2 {[%emt 0:00:21]} Bh5 {[%emt 0:01:34]} 12. Qb3 {[%emt 0:07:56]} Qb6 $11 {[%emt 0:07:04]} 13. h3 {[%emt 0:08:33]} Bg6 {[%emt 0:13:10]} 14. Bxg6 {[%emt 0:00:49]} hxg6 {[%emt 0:02:57]} 15. Qc2 {[%emt 0:01:29]} g5 {[%emt 0:03:51]} 16. Nh2 {[%emt 0:00:54]} c5 {[%emt 0:04:43]} 17. Ndf3 {[%emt 0:07:13]} cxd4 {[%emt 0:03:56]} 18. cxd4 {[%emt 0:00:07]} Qb4+ {[%emt 0:01:41]} 19. Qd2 {[%emt 0:01:11]} Qxd2+ {[%emt 0:04:25]} 20. Nxd2 {[%emt 0:00:33]} Bb4 {[%emt 0:01:41]} 21. Rd1 {[%emt 0:01:53]} Rc8 {[%emt 0:04:00]} 22. a3 {[%emt 0:04:40]} Bxd2+ {[%emt 0:04:09]} 23. Rxd2 {[%emt 0:00:09]} Ke7 {[%emt 0:01:08]} 24. O-O {[%emt 0:03:08]} Rc4 {[%emt 0:06:17]} 25. Ng4 {[%emt 0:00:40]} Rhc8 {[%emt 0:00:55]} 26. Ne3 {[%emt 0:01:04]} Rc1 {[%emt 0:00:42]} 27. Rxc1 {[%emt 0:01:44]} Rxc1+ {[%emt 0:00:04]} 28. Kh2 {[%emt 0:00:11]} Nb6 {[%emt 0:01:00]} 29. Rc2 {[%emt 0:00:48]} Rxc2 {[%emt 0:00:38]} 30. Nxc2 {[%emt 0:00:04]} Nc4 {[%emt 0:00:55]} 31. b3 {[%emt 0:00:15]} Nd2 {[%emt 0:00:20]} 32. b4 {[%emt 0:00:44]} f6 {[%emt 0:00:25]} 33. exf6+ {[%emt 0:00:50]} gxf6 {[%emt 0:00:07]} 34. Kg3 {[%emt 0:00:40]} e5 {[%emt 0:01:50]} 35. dxe5 {[%emt 0:00:52]} fxe5 {[%emt 0:00:05]} 36. f3 {[%emt 0:00:19]} d4 {[%emt 0:02:25]} 37. Kf2 {[%emt 0:00:31]} Ke6 {[%emt 0:01:11]} 38. Ke2 {[%emt 0:00:27]} Nc4 {[%emt 0:01:10]} 39. a4 {[%emt 0:02:56]} Nb2 {[%emt 0:00:21]} 40. Kd2 {[%emt 0:01:34]} Nxa4 {[%emt 0:00:23]} 41. Ne1 {[%emt 0:01:22]} b6 {[%emt 0:01:28]} 42. Nd3 {[%emt 0:02:10]} a5 {[%emt 0:00:29]} 43. bxa5 {[%emt 0:00:43]} bxa5 {[%emt 0:00:06]} 44. Kc2 {[%emt 0:00:06]} Nc3 {[%emt 0:00:37]} 45. g4 {[%emt 0:02:07]} a4 {[%emt 0:02:23]} 46. Nf2 {[%emt 0:01:02]} Kd5 {[%emt 0:02:00]} 47. Kb2 {[%emt 0:00:25]} e4 {[%emt 0:01:24]} 48. fxe4+ {[%emt 0:00:13]} Nxe4 {[%emt 0:00:08]} 49. Nd3 {[%emt 0:00:08]} Kc4 {[%emt 0:01:53]} 50. Ne5+ {[%emt 0:00:10]} Kb4 {[%emt 0:00:37]} 51. Nd3+ {[%emt 0:00:41]} Kc4 {[%emt 0:00:50]} 52. Ne5+ {[%emt 0:00:06]} Kd5 {[%emt 0:00:25]} 53. Nd3 {[%emt 0:00:51]} Nc3 {[%emt 0:00:40]} 54. Nf2 {[%emt 0:00:45]} Ke5 {[%emt 0:00:52]} 55. Nd3+ {[%emt 0:00:28]} Ke4 {[%emt 0:00:21]} 56. Nc5+ {[%emt 0:00:36]} Ke3 {[%emt 0:00:29]} 57. Ne6 {[%emt 0:01:05]} Ne4 {[%emt 0:00:18]} 58. Nxg5 {[%emt 0:00:41]} Nxg5 {[%emt 0:00:09]} 59. h4 {[%emt 0:00:11]} d3 {[%emt 0:00:36]} 0-1